bitfinex/quotes_ETHUSD_20241217
["timestamp","ask_amount","ask_price","bid_price","bid_amount"]
[1734402053164,0.86146312,4001.7,4000.1,0.7643]
[1734402054097,0.7182,4001.8,4000.1,0.8907195]
[1734402054410,0.86146383,4001.7,4000.1,0.8907195]
[1734402054569,0.86146383,4001.6,4000.1,0.8907195]
[1734402054768,0.7182,4001.8,4000.1,0.8907195]
[1734402054954,0.86157545,4001.7,4000.1,0.8907195]
[1734402057465,0.7182,4001.8,4000.1,0.8907195]
[1734402057669,1.41178843,4001.7,4000.3,0.7643]
[1734402057980,0.86184983,4001.6,4000.3,0.7643]
[1734402058708,0.55,4001.7,4000.3,0.7643]
[1734402059908,0.86208942,4001.6,4000.3,0.7643]
[1734402060265,0.55,4001.7,4000.3,0.7643]
[1734402060503,3.74781722,4001.7,4000.3,0.7643]
[1734402060703,2.15522989,4001.6,4000.3,0.7643]
[1734402060918,0.55,4001.5,4000.3,0.7643]
[1734402061075,1.76078733,4000.9,4000.0,0.7671]
[1734402061278,3.74781722,4000.8,3998.2,1.03902404]
[1734402061511,0.55,4000.6,3998.5,0.7671]
[1734402061823,0.55,4000.6,3998.5,0.79210386]
[1734402061824,1.59258733,4000.6,3998.5,0.79210386]
[1734402062044,0.86208863,4000.5,3998.5,0.79210386]
[1734402062192,0.55,4000.6,3998.7,0.7671]
[1734402062522,0.55,4000.6,3998.8,0.7671]
[1734402062685,0.86268398,4000.5,3998.8,0.7671]
[1734402062885,1.59258733,4000.6,3998.8,0.7671]
[1734402063088,0.86269207,4000.5,3998.8,0.7671]
[1734402063482,3.19919603,4000.5,3998.8,0.7671]
[1734402063783,0.86269207,4000.4,3998.8,0.7671]
[1734402064096,1.59258733,4000.6,3998.8,0.7671]
[1734402064292,2.15635221,4000.5,3998.8,0.7671]
[1734402064522,1.59258733,4000.6,3999.0,0.7671]
[1734402064726,2.15646508,4000.5,3999.0,0.7671]
[1734402064905,3.19905241,4000.5,3999.0,0.7671]
[1734402065232,1.58078603,4000.4,3999.0,0.7671]
[1734402065382,0.7182,4000.4,3999.0,0.7671]
[1734402065583,0.86256715,4000.3,3999.0,0.7671]
[1734402066003,1.76078733,4000.4,3999.0,0.7671]
[1734402066224,2.15616478,4000.3,3999.0,0.7671]
[1734402066425,0.86246591,4000.2,3999.0,0.7671]
[1734402066634,0.55,4000.3,3999.0,0.7671]
[1734402067197,1.04258733,4000.5,3999.0,0.7671]
[1734402067544,1.04258733,4000.3,3999.0,0.7671]
[1734402067765,0.86241616,4000.2,3999.0,0.7671]
[1734402068031,1.04258733,4000.4,3999.0,0.7671]
[1734402068232,3.19883213,4000.4,3999.0,0.7671]
[1734402068431,2.1562448,4000.3,3999.0,0.7671]
[1734402068631,0.86249792,4000.2,3999.0,0.7671]
[1734402068832,1.04258733,4000.3,3999.0,0.7671]
[1734402069036,0.86269468,4000.2,3999.0,0.7671]
[1734402069245,1.04258733,4000.7,3999.3,0.7671]
[1734402069449,0.8625366,4000.6,3999.3,0.7671]
[1734402069596,2.09531934,4001.1,3999.3,0.7671]
[1734402069597,1.04258733,4000.9,3999.3,0.7671]
[1734402069800,1.04258733,4000.7,3999.3,0.7671]
[1734402070446,2.156771,4000.8,3999.3,0.7671]
[1734402070447,3.19935833,4000.6,3999.3,3.0]
[1734402070598,3.19935833,4000.6,3999.5,0.7671]
[1734402070599,2.156771,4000.5,3999.5,0.7671]
[1734402070794,2.1571031,4000.4,3999.5,0.7671]
[1734402071028,2.15712549,4000.3,3999.5,0.7671]
[1734402071241,1.04258733,4000.4,3999.5,0.7671]
[1734402071242,0.8627084,4000.2,3999.5,0.7671]
[1734402071448,1.04258733,4000.4,3999.5,0.7671]
[1734402071663,3.20018773,4000.3,3999.5,0.7671]
[1734402071868,2.15761297,4000.2,3999.5,0.7671]
[1734402072014,0.86304519,4000.1,3999.5,0.7671]
[1734402072218,1.04258733,4000.3,3999.5,0.7671]
[1734402072881,1.76078733,3999.6,3998.0,0.7671]
[1734402073164,1.04418584,3999.1,3998.0,0.7671]
[1734402073475,1.04418584,3999.2,3998.0,0.7671]
[1734402073617,0.86279168,3999.1,3998.0,0.7671]
[1734402073823,1.04418584,3999.3,3998.0,0.7671]
[1734402074054,1.90697466,3999.3,3998.0,0.7671]
[1734402074258,3.20066516,3999.3,3998.0,0.7671]
[1734402074472,0.86278882,3999.2,3998.0,0.7671]
[1734402074677,3.14472866,3999.4,3998.0,0.7671]
[1734402074821,3.20033875,3999.3,3998.0,0.7671]
[1734402075178,0.86246116,3999.2,3998.0,0.7671]
[1734402075325,3.14472866,3999.4,3998.0,0.7671]
[1734402075528,2.15554912,3999.3,3998.0,0.7671]
[1734402075952,3.14472866,3999.0,3998.0,0.7671]
[1734402076277,0.86221965,3998.9,3998.0,0.7671]
[1734402077278,2.10054282,3999.0,3998.0,0.7671]
[1734402077570,0.86175606,3998.9,3998.0,0.7671]
[1734402078222,0.86175606,3998.9,3997.6,0.8284]
[1734402078223,0.7182,3998.9,3997.6,0.8284]
[1734402079089,2.62392567,3998.9,3997.6,0.8284]
[1734402079373,2.10054282,3998.2,3997.6,0.8284]
[1734402079723,2.10054282,3998.6,3997.6,0.8284]
[1734402081057,2.10054282,3998.6,3997.6,0.7784]
[1734402081280,2.60355028,3999.5,3997.6,0.7784]
[1734402081281,2.10054282,3999.0,3997.6,0.7784]
[1734402082867,1.81238584,3999.2,3997.6,0.7784]
[1734402083072,2.10054282,3998.9,3997.6,0.7784]
[1734402084270,2.10054282,3998.5,3997.6,0.7784]
[1734402084953,2.86874282,3998.5,3997.6,0.7784]
[1734402085637,2.10054282,3998.9,3997.6,0.7784]
[1734402086174,4.04418584,3999.1,3997.6,0.7784]
[1734402086175,0.7682,3998.8,3997.6,0.7784]
[1734402086340,0.55,3998.7,3997.6,0.7784]
[1734402088527,2.625,3998.6,3997.6,0.7784]
[1734402090748,0.7682,3998.8,3997.6,0.7784]
[1734402092375,0.12929056,3999.0,3997.6,0.7784]
[1734402094750,1.04418584,3999.5,3997.6,0.7784]
[1734402094951,3.0,3999.5,3997.6,0.7784]
[1734402096142,0.85924984,3999.4,3997.6,0.7784]
[1734402097137,0.98147738,3999.4,3997.6,0.7784]
[1734402097341,0.12222754,3999.4,3997.6,0.7784]
[1734402099343,0.85950154,3999.3,3997.6,0.7784]
[1734402099540,1.04418584,3999.5,3997.7,0.02501316]
[1734402099841,1.04418584,4000.2,3997.8,0.8284]
[1734402100045,0.8595036,4000.1,3998.0,0.8284]
[1734402100344,0.8595036,4000.1,3997.4,0.24475903]
[1734402100345,0.85960134,4000.0,3998.1,0.96624]
[1734402100550,1.17351984,4000.3,3998.1,0.8284]
[1734402100811,3.19322532,4000.2,3998.1,0.8284]
[1734402101105,5.14903948,4000.1,3998.1,0.8284]
[1734402101250,0.85961579,4000.0,3998.1,0.8284]
[1734402101448,4.04418584,4000.2,3998.1,0.8284]
[1734402101714,3.0,4000.0,3998.1,0.8284]
[1734402101856,0.86009284,3999.9,3998.1,0.8284]
[1734402102058,1.04418584,4000.1,3998.1,0.8284]
[1734402102262,5.1504613,4000.0,3998.1,0.8284]
[1734402102464,1.04418584,4000.1,3998.1,0.95568253]
[1734402102663,5.15103091,4000.0,3998.1,0.95568253]
[1734402102863,0.86041243,3999.9,3998.1,0.95568253]
[1734402103890,3.19583099,3999.9,3998.1,0.95568253]
[1734402104048,5.15164515,3999.8,3998.1,0.95568253]
[1734402104253,3.19645213,3999.7,3998.1,0.8284]
[1734402104451,0.86089562,3999.6,3998.1,0.8284]
[1734402104656,1.04418584,3999.5,3998.1,0.8284]
[1734402104876,2.15281539,3999.4,3998.1,0.8284]
[1734402105101,1.04418584,3999.5,3998.1,0.8284]
[1734402105302,0.8613507,3999.4,3998.1,0.8284]
[1734402105457,1.04418584,3999.6,3998.1,0.8284]
[1734402105654,3.19821576,3999.5,3998.1,0.8284]
[1734402105903,2.15402992,3999.4,3998.1,0.8284]
[1734402106108,1.04418584,3999.5,3998.1,0.8284]
[1734402106258,2.33696573,3999.4,3998.1,0.8284]
[1734402106459,2.85657169,3999.8,3998.1,0.8284]
[1734402106460,3.19881899,3999.3,3998.1,0.8284]
[1734402106696,2.15463315,3999.2,3998.1,0.8284]
[1734402107008,1.04418584,3999.0,3998.1,0.8284]
[1734402107159,1.04418584,3998.9,3998.1,0.8284]
[1734402107673,1.04418584,3998.7,3998.1,0.8284]
[1734402108081,1.04418584,3998.5,3995.9,0.78791717]
[1734402108283,3.19936404,3998.5,3996.1,0.7629]
[1734402108484,3.19936404,3998.4,3996.3,0.7629]
[1734402108707,2.15544117,3998.3,3996.5,0.7629]
[1734402108857,0.86185326,3998.2,3996.5,0.7629]
[1734402109062,1.04418584,3998.4,3996.6,0.78791743]
[1734402109306,0.86253649,3998.3,3996.6,0.78791743]
[1734402109468,0.86254174,3998.2,3996.6,0.7629]
[1734402109808,1.04418584,3998.4,3996.8,0.7629]
[1734402110119,3.20055037,3998.3,3996.8,0.7629]
[1734402110288,0.86254581,3998.2,3996.9,0.7629]
[1734402110506,1.04418584,3998.3,3996.9,0.7629]
[1734402111075,1.04418584,3998.1,3996.9,0.7629]
[1734402111377,2.33848958,3998.1,3996.9,0.7629]
[1734402111579,0.86269046,3998.0,3996.9,0.7629]
[1734402111804,1.04418584,3998.1,3996.9,0.7629]
[1734402112290,1.04418584,3998.2,3996.9,0.7629]
[1734402112478,1.29447406,3998.1,3996.9,0.7629]
[1734402112673,0.86298271,3998.0,3996.9,0.7629]
[1734402112873,1.04418584,3998.1,3996.9,0.7629]
[1734402113111,2.3386972,3998.0,3996.9,0.7629]
[1734402113289,2.15777838,3997.9,3996.9,0.7629]
[1734402113499,1.04418584,3998.0,3996.9,0.7629]
[1734402114021,1.29477984,3997.9,3996.9,0.7629]
[1734402114236,1.04418584,3998.0,3996.9,0.7629]
[1734402114532,1.04418584,3998.1,3996.9,0.7629]
[1734402114732,3.20246478,3998.0,3996.9,0.7629]
[1734402114938,0.86330174,3997.9,3996.9,0.7629]
[1734402115080,1.04418584,3998.0,3996.9,0.7629]
[1734402115286,1.04418584,3998.1,3996.9,0.7629]
[1734402116191,3.20294617,3998.0,3996.9,0.7629]
[1734402116395,0.86350413,3997.9,3996.9,0.7629]
[1734402116594,3.20398096,3997.9,3996.9,0.7629]
[1734402116849,2.15979512,3997.8,3996.9,0.7629]
[1734402117048,0.86389826,3997.7,3996.9,0.7629]
[1734402117194,1.04418584,3997.7,3996.9,0.7629]
[1734402117395,0.86389826,3997.6,3996.9,0.7629]
[1734402117651,1.04418584,3997.7,3996.9,0.7629]
[1734402117831,0.86430018,3997.6,3996.9,0.7629]
[1734402118043,1.04418584,3997.8,3996.9,0.7629]
[1734402118235,3.20582502,3997.7,3996.9,0.7629]
[1734402118450,2.16163918,3997.6,3996.9,0.7629]
[1734402118612,0.86465576,3997.5,3996.9,0.7629]
[1734402118799,1.04418584,3997.7,3996.9,0.7629]
[1734402119411,3.20581859,3997.6,3996.9,0.7629]
[1734402119643,0.8646531,3997.5,3996.9,0.7629]
[1734402119844,1.04418584,3997.6,3996.9,0.7629]
[1734402120913,0.86462085,3997.5,3996.9,0.7629]
[1734402121245,1.04418584,3997.7,3996.9,0.7629]
[1734402121407,3.20595041,3997.6,3996.9,0.7629]
[1734402121606,1.04418584,3997.3,3996.9,0.7629]
[1734402121860,1.04418584,3997.1,3996.9,0.7629]
[1734402122166,3.20595041,3997.0,3996.9,0.7629]
[1734402122310,2.16176457,3997.0,3996.9,0.7629]
[1734402122505,1.04418584,3997.1,3996.9,0.7629]
[1734402122928,1.04418584,3997.2,3996.9,0.7629]
[1734402123142,3.20547699,3997.2,3996.9,0.7629]
[1734402123416,2.16129115,3997.1,3996.9,0.7629]
[1734402123628,2.16126401,3997.0,3996.9,0.7629]
[1734402123956,0.85962783,3997.0,3996.9,0.7629]
[1734402124110,1.04418584,3997.1,3996.9,0.7629]
[1734402124348,2.34146483,3997.0,3996.9,0.7629]
[1734402124659,1.29628054,3997.0,3996.9,0.7629]
[1734402125168,2.34123332,3997.0,3996.9,0.7629]
[1734402125985,2.34072367,3997.0,3996.9,0.7629]
[1734402126331,1.29577089,3997.0,3996.9,0.7629]
[1734402126663,1.29577089,3997.0,3995.9,0.7758]
[1734402126865,1.04448165,3996.8,3995.9,0.7758]
[1734402127033,1.04448165,3996.6,3995.9,0.7758]
[1734402127240,2.34025254,3996.5,3995.9,0.7758]
[1734402127483,2.86874282,3997.0,3995.9,0.7758]
[1734402127484,2.34025254,3996.4,3995.9,0.7758]
[1734402127705,1.295096,3996.3,3995.9,0.7758]
[1734402127980,1.04448165,3996.4,3995.9,0.7758]
[1734402128161,2.33954969,3996.3,3995.9,0.7758]
[1734402128361,1.29507027,3996.2,3995.1,0.12662133]
[1734402128605,1.04448165,3996.3,3995.2,0.7758]
[1734402128886,1.29455546,3996.2,3995.2,0.7758]
[1734402129054,1.04448165,3996.3,3995.2,0.7758]
[1734402129251,2.33899513,3996.2,3995.2,0.7758]
[1734402129454,1.29451425,3996.1,3995.2,0.7758]
[1734402129782,1.04448165,3996.3,3995.2,0.7758]
[1734402129983,1.29397307,3996.2,3995.2,0.7758]
[1734402130296,1.29389561,3996.1,3995.2,0.7758]
[1734402130454,1.04448165,3995.9,3995.2,0.7758]
[1734402130780,1.04448165,3995.7,3995.2,0.7758]
[1734402130982,1.04448165,3995.8,3995.2,0.7758]
[1734402131351,1.04448165,3995.9,3995.2,0.7758]
[1734402131752,1.29251495,3995.8,3995.2,0.7758]
[1734402131955,1.04448165,3995.9,3993.9,0.7758]
[1734402132141,1.29252726,3995.8,3993.9,0.7758]
[1734402132349,1.29243345,3995.7,3993.9,3.0]
[1734402132572,1.29243345,3995.7,3994.1,0.7758]
[1734402132898,3.91322447,3995.8,3994.1,0.7758]
[1734402133192,1.04448165,3995.6,3994.1,0.7758]
[1734402133503,1.29181067,3995.5,3994.1,0.7758]
[1734402133788,1.04448165,3995.8,3994.1,0.7758]
[1734402133998,3.7682,3996.2,3994.1,0.7758]
[1734402134155,0.55,3996.1,3994.1,0.7758]
[1734402134700,2.33090496,3996.1,3994.3,0.8192]
[1734402134863,3.7682,3996.2,3994.3,0.84423331]
[1734402135042,1.04062727,3996.5,3994.5,0.8192]
[1734402135389,2.86874282,3996.8,3993.8,0.12503886]
[1734402135390,2.86874282,3996.8,3994.8,0.8192]
[1734402135553,2.86874282,3996.8,3995.0,0.8192]
[1734402136147,2.10054282,3996.4,3995.0,0.8192]
[1734402137343,3.0,3996.7,3995.0,0.8192]
[1734402137344,2.10054282,3996.0,3995.0,0.8192]
[1734402137790,0.55,3995.9,3995.0,0.8192]
[1734402138347,5.10054282,3996.0,3995.0,0.8192]
[1734402138561,0.8192,3995.8,3995.0,0.8192]
[1734402139346,2.10054282,3995.6,3995.0,0.8192]
[1734402140148,0.8192,3995.8,3995.0,0.8192]
[1734402140377,2.10054282,3996.4,3995.0,0.8192]
[1734402140894,3.10085482,3996.4,3995.0,0.8192]
[1734402141785,1.000312,3996.4,3995.0,0.8192]
[1734402141993,2.10054282,3996.6,3995.0,0.8192]
[1734402142164,2.10054282,3996.2,3995.0,0.8192]
[1734402144769,0.7682,3996.1,3995.0,0.8192]
[1734402145420,2.10054282,3995.8,3995.0,0.8192]
[1734402145633,2.86874282,3995.4,3993.0,0.8192]
[1734402146265,2.10054282,3995.0,3993.0,0.8192]
[1734402146927,0.55,3994.9,3993.0,0.8192]
[1734402147074,2.10054282,3995.0,3993.0,0.8192]
[1734402147277,0.55,3994.7,3993.0,0.8192]
[1734402147511,2.10054282,3995.0,3993.0,0.8192]
[1734402148320,2.63,3994.8,3993.0,0.8192]
[1734402148501,0.55,3994.7,3993.0,0.8192]
[1734402148679,0.55,3994.7,3993.0,0.7926]
[1734402149023,2.10054282,3994.6,3993.0,0.7926]
[1734402149169,5.10054282,3994.6,3993.0,0.7926]
[1734402149881,3.55,3994.5,3993.0,0.7926]
[1734402150471,2.10054282,3993.8,3993.0,0.7926]
[1734402150708,3.0,3994.4,3992.7,0.1636439]
[1734402150709,2.10054282,3993.4,3992.7,0.1636439]
[1734402150867,2.10054282,3992.9,3992.7,0.1636439]
[1734402151283,2.10054282,3993.3,3992.7,0.1636439]
[1734402151817,2.10054282,3993.7,3992.8,0.7968]
[1734402153997,2.10054282,3993.3,3992.8,0.7968]
[1734402156421,2.10054282,3993.3,3992.7,0.1636439]
[1734402156917,2.10054282,3992.8,3992.7,0.1636439]
[1734402163373,3.0,3993.2,3992.7,0.1636439]
[1734402163713,0.7948,3992.7,3991.7,0.7968]
[1734402164015,2.10054282,3992.0,3991.7,0.7968]
[1734402165417,2.10054282,3992.0,3990.0,0.78995507]
[1734402165418,0.7915,3991.9,3990.0,0.78995507]
[1734402165620,0.7915,3991.9,3990.2,0.7649]
[1734402165621,2.10054282,3991.3,3990.2,0.7649]
[1734402170482,0.7915,3991.9,3990.2,0.7649]
[1734402170483,2.10054282,3991.7,3990.2,0.7649]
[1734402171518,2.10054282,3992.5,3990.6,0.7649]
[1734402171819,2.10054282,3992.5,3990.8,0.7649]
[1734402172815,2.10054282,3992.4,3990.8,0.7649]
[1734402173380,2.63,3992.3,3990.8,0.7649]
[1734402173688,2.10054282,3992.4,3990.8,0.7649]
[1734402173895,2.10054282,3992.4,3990.8,1.14139]
[1734402174429,2.10054282,3992.4,3990.9,0.7649]
[1734402175621,3.0,3992.5,3990.9,0.7649]
[1734402175622,0.7915,3991.9,3990.9,0.7649]
[1734402175925,2.10054282,3991.6,3990.9,0.7649]
[1734402176728,0.7915,3991.9,3990.9,0.7649]
[1734402176893,0.7915,3992.2,3990.9,0.7649]
[1734402177096,2.10054282,3992.8,3990.9,0.7649]
[1734402177097,0.7915,3992.6,3990.9,0.7649]
[1734402177302,3.7915,3993.1,3990.9,0.7649]
[1734402177694,0.7915,3993.1,3990.9,0.7649]
[1734402177887,1.5564,3993.1,3990.9,0.7649]
[1734402178086,1.5564,3993.1,3991.1,0.7649]
[1734402178279,0.7915,3993.1,3991.1,0.7649]
[1734402178485,0.12929389,3993.0,3991.1,0.7649]
[1734402180802,0.12929389,3993.0,3991.2,0.02505184]
[1734402181102,0.8053,3993.5,3990.5,0.57505047]
[1734402181308,0.8053,3993.5,3991.3,3.0]
[1734402181516,0.93465297,3993.5,3991.4,0.3]
[1734402182131,2.10054282,3993.4,3991.4,0.3]
[1734402182548,2.10054282,3993.4,3991.3,3.0]
[1734402183413,2.10054282,3993.4,3990.2,0.55]
[1734402183611,2.10054282,3993.4,3990.2,0.67491743]
[1734402183817,2.10054282,3993.4,3991.4,0.7849]
[1734402184620,0.93465297,3993.5,3991.4,0.7849]
[1734402184935,0.93465297,3993.5,3991.6,0.7849]
[1734402185918,0.12935297,3993.5,3991.7,0.02504636]
[1734402186120,0.12935297,3993.5,3991.5,0.55]
[1734402186418,0.25,3993.8,3991.9,0.7849]
[1734402186825,0.8053,3993.7,3991.9,0.7849]
[1734402188165,0.25,3993.8,3991.9,0.7849]
[1734402188999,4.84592727,3993.7,3991.9,0.7849]
[1734402189289,0.8053,3993.3,3991.9,0.7849]
[1734402189509,3.19564389,3993.2,3991.9,0.7849]
[1734402190193,0.8053,3993.3,3991.9,0.7849]
[1734402190375,6.19647938,3993.2,3991.9,0.7849]
[1734402190582,1.04062727,3993.0,3991.9,0.7849]
[1734402191690,1.04062727,3992.8,3991.9,0.7849]
[1734402191893,0.8053,3992.7,3990.8,0.7849]
[1734402192193,3.19975582,3992.6,3991.2,0.7849]
[1734402192389,1.04062727,3992.5,3991.2,0.7849]
[1734402192589,1.04062727,3992.3,3991.2,3.7849]
[1734402192763,0.86365142,3992.2,3991.2,0.7849]
[1734402192961,1.5609409,3992.6,3991.2,0.7849]
[1734402192962,0.8639778,3992.1,3991.2,0.7849]
[1734402193169,1.04062727,3992.3,3991.2,0.7849]
[1734402193547,0.86402556,3992.2,3991.2,0.7849]
[1734402193776,1.04062727,3992.3,3991.2,0.7849]
[1734402193976,3.20143889,3992.2,3991.2,0.7849]
[1734402194291,0.86432441,3992.1,3991.2,0.7849]
[1734402194597,0.86463879,3992.0,3991.2,0.7849]
[1734402194764,1.04062727,3992.1,3991.2,0.7849]
[1734402195173,3.20222019,3992.0,3991.2,0.7849]
[1734402195369,2.16159292,3991.9,3991.2,0.7849]
[1734402195581,0.86463717,3991.8,3991.2,0.7849]
[1734402195830,1.04062727,3992.0,3991.2,0.7849]
[1734402196368,2.16225822,3991.9,3991.2,0.7849]
[1734402196572,1.04062727,3992.0,3991.2,0.7849]
[1734402196573,1.04062727,3991.6,3991.2,0.7849]
[1734402196882,1.04062727,3991.4,3990.0,0.8012]
[1734402197090,3.20371507,3991.3,3990.0,0.93352]
[1734402197285,2.1630878,3991.2,3990.0,0.93352]
[1734402197454,0.86523512,3991.1,3990.0,0.93352]
[1734402197653,1.04062727,3991.3,3990.0,0.93352]
[1734402197907,3.20365377,3991.3,3990.0,0.93352]
[1734402198083,0.8652106,3991.2,3990.0,0.8012]
[1734402198399,1.04062727,3991.2,3990.0,0.8012]
[1734402199284,1.04062727,3991.0,3990.0,0.8012]
[1734402199486,1.04062727,3990.9,3990.0,0.8012]
[1734402199719,0.8652106,3990.8,3990.0,0.8012]
[1734402199900,1.04062727,3991.0,3990.0,0.8012]
[1734402200630,3.20355853,3990.9,3990.0,0.8012]
[1734402200842,3.20355853,3990.8,3990.0,0.8012]
[1734402200989,0.8651725,3990.7,3990.0,0.8012]
[1734402201189,1.04062727,3990.9,3990.0,0.8012]
[1734402201390,1.04062727,3991.0,3990.0,0.8012]
[1734402202026,3.2028628,3990.9,3990.0,0.8012]
[1734402202242,0.86489421,3990.8,3990.0,0.8012]
[1734402202445,1.04062727,3991.0,3990.0,0.8012]
[1734402202640,3.20264968,3991.0,3990.0,0.8012]
[1734402202847,2.16202241,3990.9,3990.0,0.8012]
[1734402203050,0.86480896,3990.8,3990.0,0.8012]
[1734402203235,1.04062727,3991.0,3990.0,0.8012]
[1734402203831,3.20242158,3990.9,3990.0,0.8012]
[1734402204145,0.86471772,3990.8,3990.0,0.8012]
[1734402204309,1.04062727,3991.0,3990.0,0.8012]
[1734402204506,3.2021758,3991.0,3990.0,0.8012]
[1734402204711,2.16154853,3990.9,3990.0,0.8012]
[1734402204945,0.86461941,3990.8,3990.0,0.8012]
[1734402205260,1.04062727,3991.0,3990.0,0.8012]
[1734402207552,1.86272727,3990.8,3989.9,0.522]
[1734402207736,1.04062727,3990.6,3989.9,0.522]
[1734402208450,1.04062727,3990.7,3989.9,0.522]
[1734402208611,0.86433307,3990.6,3990.0,0.8012]
[1734402208807,1.04062727,3990.9,3990.0,0.8012]
[1734402209015,1.04062727,3991.1,3990.0,0.93352]
[1734402209209,0.86421733,3991.0,3990.0,0.8012]
[1734402209409,1.04062727,3991.3,3990.0,0.8012]
[1734402210253,1.90480508,3991.3,3990.0,0.8012]
[1734402210456,2.16044452,3991.2,3990.0,0.8012]
[1734402210647,0.86415211,3991.1,3990.0,0.93352]
[1734402210868,1.04062727,3991.3,3990.0,0.93352]
[1734402211047,3.20088598,3991.3,3990.0,0.93352]
[1734402211212,1.04062727,3991.5,3990.1,4.06014266]
[1734402211417,2.08125454,3991.9,3990.4,3.0]
[1734402211418,1.04062727,3991.9,3990.4,3.0]
[1734402211665,1.04062727,3992.2,3990.7,0.8012]
[1734402211861,1.04062727,3992.3,3990.9,0.8012]
[1734402212062,1.04062727,3992.3,3991.1,0.8012]
[1734402212360,0.8221,3992.1,3991.1,0.8012]
[1734402212519,0.8638408,3992.0,3991.1,0.8012]
[1734402213330,1.86272727,3992.1,3991.1,0.8012]
[1734402213534,0.86395176,3992.0,3991.1,0.8012]
[1734402214720,1.04062727,3992.1,3991.1,0.8012]
[1734402215128,2.92264282,3992.4,3991.1,0.8012]
[1734402215129,0.86395932,3992.0,3991.1,0.8012]
[1734402215337,1.04062727,3992.2,3991.1,0.8012]
[1734402215664,1.72792264,3992.7,3991.1,0.8012]
[1734402215665,1.04062727,3992.3,3991.1,0.8012]
[1734402216459,1.04062727,3992.4,3991.1,0.8012]
[1734402216659,0.86393657,3992.3,3991.3,0.8012]
[1734402216833,1.04062727,3992.5,3991.3,0.8012]
[1734402217661,3.20043478,3992.5,3991.3,0.8012]
[1734402217824,1.04062727,3992.3,3991.3,0.8012]
[1734402218519,0.863923,3992.2,3991.3,0.8012]
[1734402218720,1.04062727,3992.4,3991.3,0.8012]
[1734402220219,2.33650729,3992.4,3991.3,0.8012]
[1734402220423,2.15980003,3992.3,3991.3,0.8012]
[1734402220662,1.04062727,3992.4,3991.3,0.8012]
[1734402222321,1.04062727,3992.0,3990.0,0.8012]
[1734402222629,1.04062727,3992.0,3989.3,1.02905037]
[1734402222630,1.86272727,3991.7,3990.1,0.93352]
[1734402222819,3.20054034,3991.6,3990.1,0.93352]
[1734402223019,2.3830409,3991.7,3990.1,0.93352]
[1734402223020,3.20054034,3991.5,3990.1,0.8012]
[1734402223266,3.20054034,3991.4,3990.1,0.8012]
[1734402223572,2.15991307,3991.3,3990.1,0.8012]
[1734402223731,0.86396523,3991.2,3990.1,0.8012]
[1734402223936,0.8641519,3991.1,3990.1,0.8012]
[1734402224122,1.04062727,3991.3,3990.1,0.8012]
[1734402225256,1.04062727,3991.3,3990.1,1.23352]
[1734402225650,3.20101885,3991.3,3990.1,1.23352]
[1734402225879,2.16039158,3991.2,3990.1,1.23352]
[1734402226059,0.86415663,3991.1,3990.1,0.8012]
[1734402226242,1.04062727,3991.3,3990.1,0.8012]
[1734402226629,3.20080282,3991.2,3990.1,0.8012]
[1734402226825,2.16017555,3991.1,3990.1,0.8012]
[1734402227082,0.86407022,3991.0,3990.1,0.8012]
[1734402227283,1.04062727,3991.1,3990.1,0.8012]
[1734402227433,4.60580282,3991.6,3990.1,0.8012]
[1734402227434,3.20093602,3991.0,3990.1,0.8012]
[1734402227630,2.16031559,3990.9,3990.1,0.8012]
[1734402227834,1.04062727,3991.0,3990.1,0.8012]
[1734402228978,3.20104544,3990.9,3990.1,0.8012]
[1734402229144,2.16041817,3990.8,3990.1,0.8012]
[1734402229474,1.04062727,3990.9,3990.1,0.8012]
[1734402230303,1.04062727,3991.2,3990.1,0.8012]
[1734402230598,1.04062727,3991.0,3990.1,0.8012]
[1734402231582,3.20075014,3991.1,3990.1,0.8012]
[1734402231767,3.20089992,3991.0,3990.1,0.8012]
[1734402231978,2.16027265,3990.9,3990.1,0.8012]
[1734402232208,0.86404915,3990.8,3990.1,0.8012]
[1734402232400,1.85382727,3991.0,3990.1,0.8012]
[1734402232600,3.20141323,3990.9,3990.1,0.8012]
[1734402233155,3.20141323,3990.8,3990.1,0.8012]
[1734402233386,0.86431417,3990.7,3990.1,0.8012]
[1734402233605,1.04062727,3990.8,3990.1,0.8012]
[1734402233774,3.20184117,3990.7,3990.1,0.8012]
[1734402234110,3.20185487,3990.6,3990.1,0.8012]
[1734402234316,2.1615942,3990.5,3990.1,0.8012]
[1734402234518,0.86448556,3990.4,3990.1,0.8012]
[1734402234667,1.04062727,3990.5,3990.1,0.8012]
[1734402235299,0.86475468,3990.4,3990.1,0.8012]
[1734402235499,1.04062727,3990.9,3990.1,0.93352]
[1734402236215,1.04062727,3991.2,3990.1,0.82626022]
[1734402236426,1.04062727,3991.3,3990.1,0.8012]
[1734402236724,0.86490715,3991.2,3990.1,0.8012]
[1734402236906,1.04062727,3991.4,3990.3,0.763]
[1734402237105,1.04062727,3991.3,3990.3,0.763]
[1734402239068,0.86510717,3991.2,3990.3,0.763]
[1734402239409,1.04062727,3991.4,3990.3,0.763]
[1734402239743,0.86527745,3991.3,3990.3,0.763]
[1734402239868,1.04062727,3991.4,3990.3,0.763]
[1734402240069,3.20385033,3991.3,3990.3,0.763]
[1734402240384,2.16322306,3991.2,3990.3,0.763]
[1734402240698,0.86534802,3991.1,3990.3,0.763]
[1734402240902,1.04062727,3991.3,3990.3,0.763]
[1734402241602,1.04062727,3991.3,3990.4,0.8185]
[1734402242621,3.20410402,3991.3,3990.4,0.8185]
[1734402242826,2.16347675,3991.2,3990.4,0.8185]
[1734402243023,0.8653907,3991.1,3990.4,0.8185]
[1734402243228,1.04062727,3991.3,3990.4,0.8185]
[1734402245486,3.20415436,3991.2,3990.4,0.8185]
[1734402245712,0.86542665,3991.1,3990.4,0.8185]
[1734402246043,1.04062727,3991.3,3990.4,0.8185]
[1734402246325,1.04062727,3991.5,3990.6,0.8215]
[1734402246529,1.04062727,3991.6,3990.7,0.02505495]
[1734402246837,1.04062727,3991.8,3990.8,0.8215]
[1734402247345,1.04062727,3991.4,3990.8,0.8215]
[1734402247526,3.20399435,3991.3,3990.8,0.8215]